bitfinex/quotes_ETHUSD_20251126
["timestamp","ask_amount","ask_price","bid_price","bid_amount"]
[1764120714650,0.002,2970.3,2969.7,15.12716811]
[1764120714957,0.4519,2970.2,2969.7,7.46028111]
[1764120715562,0.6419,2969.8,2969.7,4.09293761]
[1764120715957,1.0938,2969.8,2969.7,4.09293761]
[1764120717285,0.4541,2969.8,2969.7,4.09293761]
[1764120717784,0.1878,2969.9,2969.7,4.09293761]
[1764120718385,0.002,2970.3,2970.0,1.13109811]
[1764120718583,0.002,2970.3,2970.2,0.5934]
[1764120718957,0.002,2970.3,2970.2,1.690904]
[1764120719271,0.002,2970.3,2970.2,1.475904]
[1764120719472,0.002,2970.3,2970.2,1.690904]
[1764120720088,0.002,2970.3,2970.2,1.475904]
[1764120720382,0.002,2970.3,2970.2,5.78327475]
[1764120720583,0.002,2970.3,2970.2,5.88327475]
[1764120722054,0.002,2970.3,2970.2,5.78327475]
[1764120722655,0.002,2970.3,2970.2,5.88327475]
[1764120723158,0.002,2970.3,2970.2,5.66827475]
[1764120723354,0.002,2970.3,2970.2,5.88327475]
[1764120723984,0.002,2970.3,2970.2,5.91694251]
[1764120724294,0.1809,2972.0,2970.2,5.91694251]
[1764120724295,0.1923,2972.2,2970.5,0.4627]
[1764120724503,0.1923,2972.9,2971.5,0.405504]
[1764120724658,0.1923,2973.4,2972.4,1.13109811]
[1764120724857,0.1923,2973.8,2972.9,0.405504]
[1764120725092,0.1923,2973.8,2972.9,0.620504]
[1764120725456,0.6536,2974.4,2973.1,0.405504]
[1764120725766,0.215,2974.7,2973.2,0.405504]
[1764120725976,0.4658,2974.9,2974.1,0.72559411]
[1764120726176,0.4658,2974.9,2973.4,0.405504]
[1764120726376,0.4658,2974.9,2973.7,0.72559411]
[1764120726766,0.4658,2975.6,2974.0,0.405504]
[1764120727087,0.4658,2975.6,2974.4,0.1]
[1764120727386,0.4658,2975.6,2973.9,0.72559411]
[1764120727387,0.4658,2975.6,2973.8,0.720504]
[1764120727572,2.661561,2975.5,2973.7,0.72559411]
[1764120728012,0.4658,2975.4,2973.7,0.72559411]
[1764120728396,2.22207,2975.3,2973.8,6.72540184]
[1764120728578,0.4658,2975.4,2973.9,0.405504]
[1764120728780,0.6808,2975.3,2974.0,0.4837]
[1764120728999,0.6808,2975.3,2974.1,0.1657]
[1764120729202,0.4658,2975.2,2974.1,0.1657]
[1764120730074,0.4658,2975.2,2974.2,0.405504]
[1764120730271,0.4658,2975.2,2974.4,0.72559411]
[1764120730502,0.1923,2974.5,2974.4,0.72559411]
[1764120730702,0.6729,2974.5,2974.3,6.72427124]
[1764120730904,0.1923,2974.9,2974.4,0.72559411]
[1764120731209,0.74248334,2975.7,2974.4,0.72559411]
[1764120731210,0.4658,2975.6,2974.4,0.72559411]
[1764120731389,0.1923,2974.9,2974.4,0.72559411]
[1764120731593,0.4658,2975.5,2974.4,0.72559411]
[1764120732102,0.6729,2974.5,2974.4,0.72559411]
[1764120732609,0.1923,2974.5,2973.8,0.72559411]
[1764120733101,0.6581,2974.5,2973.7,6.725628]
[1764120733494,0.4658,2974.4,2973.8,0.72559411]
[1764120734429,0.4658,2974.4,2973.9,3.36258784]
[1764120734629,0.4658,2974.4,2974.0,0.72559411]
[1764120735229,0.4806,2974.1,2973.3,6.7265328]
[1764120735434,0.3068,2974.0,2973.3,6.7265328]
[1764120735633,0.3068,2974.0,2973.4,0.72559411]
[1764120735820,0.6581,2973.9,2973.4,0.72559411]
[1764120736335,0.4658,2973.8,2973.4,0.72559411]
[1764120736518,0.4658,2973.8,2973.5,3.36304018]
[1764120736923,0.1923,2973.9,2973.5,4.08863429]
[1764120737253,0.1923,2973.9,2973.5,6.72608036]
[1764120737434,0.1923,2973.9,2972.7,6.72789046]
[1764120737435,0.4806,2973.6,2972.7,6.72789046]
[1764120737609,0.4806,2973.6,2972.7,10.09183569]
[1764120737813,0.4806,2973.6,2972.8,0.03363832]
[1764120738010,0.4806,2973.6,2972.8,0.75923243]
[1764120738223,0.1923,2973.9,2972.9,0.4837]
[1764120738604,0.1923,2973.9,2973.1,0.72559411]
[1764120738810,0.4658,2973.8,2973.1,0.72559411]
[1764120739018,0.4658,2973.8,2973.0,6.72721156]
[1764120739631,0.4658,2973.8,2973.0,10.09081734]
[1764120740018,0.4658,2973.8,2973.0,6.72721156]
[1764120740422,0.4658,2973.8,2973.0,10.09081734]
[1764120740620,0.4658,2973.8,2972.9,0.72559411]
[1764120740803,0.4658,2973.8,2973.1,0.1657]
[1764120741068,0.1923,2973.9,2973.1,0.1657]
[1764120741069,0.1923,2973.9,2973.1,0.19933492]
[1764120741367,0.215,2974.1,2973.1,0.69603492]
[1764120741569,0.215,2974.1,2973.1,0.19933492]
[1764120741570,0.1931,2973.9,2973.1,0.19933492]
[1764120741933,0.1923,2974.5,2973.1,0.19933492]
[1764120741934,0.215,2974.1,2973.1,0.69603492]
[1764120742293,0.002,2974.9,2974.4,0.6559]
[1764120742475,0.002,2974.9,2974.2,0.1657]
[1764120742476,0.474,2974.9,2974.2,0.1657]
[1764120742684,0.002,2974.9,2974.4,0.72559411]
[1764120743177,0.474,2974.9,2974.4,0.72559411]
[1764120743862,0.002,2974.9,2974.4,0.72559411]
[1764120744062,0.472,2974.8,2974.4,0.72559411]
[1764120744232,0.002,2974.9,2974.4,0.72559411]
[1764120744437,0.002,2974.9,2974.4,1.22229411]
[1764120744662,0.002,2974.9,2974.5,10.08572868]
[1764120744879,0.472,2974.8,2974.5,6.72381912]
[1764120745437,0.472,2974.8,2974.5,3.36190956]
[1764120745438,0.455,2974.6,2974.5,3.36190956]
[1764120745637,0.002,2974.9,2974.6,0.72559411]
[1764120745838,3.424198,2977.1,2974.8,0.4902]
[1764120746037,0.1931,2977.9,2977.0,0.0966]
[1764120746647,0.1931,2977.9,2977.1,10.07692047]
[1764120747262,0.1931,2977.9,2977.2,0.72559411]
[1764120747637,0.1931,2978.1,2977.2,0.72559411]
[1764120747972,0.472,2978.1,2977.2,0.72559411]
[1764120748140,0.1931,2977.3,2976.7,0.0966]
[1764120748335,0.1931,2977.3,2976.4,0.405504]
[1764120748561,0.1931,2977.6,2976.6,0.72559411]
[1764120748967,0.472,2977.5,2976.5,0.72559411]
[1764120749167,0.472,2977.5,2976.3,3.35985832]
[1764120749474,3.55154213,2977.6,2976.4,0.72559411]
[1764120749475,0.1931,2977.6,2976.4,0.72559411]
[1764120749897,0.472,2977.5,2976.4,0.72559411]
[1764120750797,0.472,2977.5,2976.6,0.72559411]
[1764120750970,0.216,2977.4,2976.6,0.72559411]
[1764120751168,0.1931,2977.6,2976.6,0.72559411]
[1764120751997,0.6651,2977.6,2976.6,0.72559411]
[1764120752370,0.1931,2976.7,2976.1,3.36010214]
[1764120752565,0.1931,2976.7,2975.9,3.36022441]
[1764120752566,0.472,2976.6,2975.9,3.36022441]
[1764120752874,0.472,2976.6,2975.8,0.72559411]
[1764120753181,0.472,2976.6,2975.7,10.08166143]
[1764120753182,0.1931,2976.7,2975.7,10.08166143]
[1764120753377,0.1931,2976.9,2975.7,10.08166143]
[1764120753579,0.216,2976.8,2975.8,1.22229411]
[1764120753890,0.72559411,2977.9,2975.8,1.22229411]
[1764120753891,0.90302148,2978.7,2976.8,0.72559411]
[1764120754067,1.21575083,2978.9,2977.2,1.13109811]
[1764120754068,0.1931,2978.9,2977.2,1.13109811]
[1764120754269,0.472,2978.8,2977.2,1.119204]
[1764120754474,0.472,2978.8,2977.3,0.30722954]
[1764120754696,0.472,2978.8,2977.6,0.72559411]
[1764120755002,6.463316,2978.3,2976.6,0.82219411]
[1764120755200,0.1931,2977.7,2976.8,0.405504]
[1764120755387,0.1931,2977.7,2976.9,0.30744722]
[1764120755716,0.1931,2978.9,2977.1,0.405504]
[1764120755869,0.472,2978.5,2977.2,0.30744722]
[1764120756074,0.472,2978.5,2977.3,0.30744722]
[1764120756278,0.472,2978.5,2977.4,0.30744722]
[1764120756479,0.472,2978.5,2976.9,1.002204]
[1764120756685,0.472,2978.5,2977.3,1.13109811]
[1764120757027,11.499815,2978.4,2977.2,3.35886067]
[1764120757183,0.1931,2977.3,2977.2,3.35886067]
[1764120757611,0.6651,2977.3,2977.2,3.35886067]
[1764120758016,0.1931,2977.5,2977.2,6.71772134]
[1764120758322,0.1931,2977.5,2976.5,0.72559411]
[1764120758608,0.1931,2977.5,2976.6,0.30697266]
[1764120758609,0.472,2977.4,2976.6,0.30697266]
[1764120758778,0.472,2977.4,2976.8,0.72559411]
[1764120760208,0.217,2977.3,2976.8,0.72559411]
[1764120760590,0.1931,2977.5,2976.8,0.72559411]
[1764120760786,0.1931,2977.5,2976.9,6.71839832]
[1764120760992,0.217,2977.5,2976.9,10.07759748]
[1764120761200,0.217,2977.6,2976.9,10.07759748]
[1764120761494,0.6651,2977.7,2976.9,6.71839832]
[1764120761688,0.217,2977.6,2976.9,3.35919916]
[1764120761882,0.217,2977.6,2976.3,0.0966]
[1764120761883,0.689,2977.6,2976.6,0.72559411]
[1764120762087,0.472,2977.5,2976.6,0.72559411]
[1764120762346,0.472,2977.5,2976.5,3.35965059]
[1764120762482,0.1931,2976.7,2975.8,3.36044088]
[1764120762824,0.4101,2976.7,2975.9,7.75321067]
[1764120763021,0.8821,2976.7,2976.0,0.30697687]
[1764120763206,0.8821,2976.7,2975.9,3.36031173]
[1764120763408,0.472,2976.6,2975.9,3.36031173]
[1764120763650,0.472,2976.6,2975.8,0.72559411]
[1764120763825,0.472,2976.6,2975.2,3.36111858]
[1764120763826,0.1931,2975.9,2975.2,3.36111858]
[1764120763998,0.217,2975.8,2975.3,0.30731969]
[1764120764188,0.217,2975.8,2975.2,10.08335574]
[1764120764505,0.1931,2975.9,2975.3,1.03307533]
[1764120764710,0.1931,2975.9,2975.4,0.30746443]
[1764120764910,0.1931,2975.9,2975.6,6.7213335]
[1764120765582,0.6651,2975.9,2975.6,6.7213335]
[1764120765787,0.6651,2975.9,2975.6,3.36066675]
[1764120765788,0.472,2975.8,2975.6,3.36066675]
[1764120766008,0.1931,2975.9,2975.6,6.7213335]
[1764120766216,0.4101,2975.9,2975.6,6.7213335]
[1764120766820,0.4101,2975.9,2975.5,0.72559411]
[1764120766995,0.472,2975.8,2975.5,0.72559411]
[1764120767196,0.217,2976.0,2975.5,0.72559411]
[1764120767428,0.1931,2976.0,2975.5,0.72559411]
[1764120768037,0.6651,2976.0,2975.5,0.72559411]
[1764120768257,0.1931,2976.0,2975.6,0.30795837]
[1764120768557,0.1931,2976.7,2975.5,0.72559411]
[1764120768558,0.4101,2976.2,2975.7,0.30795837]
[1764120768858,0.4101,2976.2,2975.9,6.72065592]
[1764120769057,0.472,2976.6,2975.9,10.08098388]
[1764120769260,0.1931,2976.7,2976.0,1.03377153]
[1764120769426,0.1931,2976.7,2976.1,0.40477742]
[1764120769627,0.1931,2976.7,2976.2,0.30817742]
[1764120769846,0.1931,2976.7,2976.3,0.30817742]
[1764120770044,0.1931,2976.7,2976.0,0.72559411]
[1764120770045,0.472,2976.6,2976.4,0.30817742]
[1764120770349,0.455,2976.1,2975.9,6.72065592]
[1764120770547,0.7762,2976.0,2975.9,4.08592207]
[1764120770721,0.7762,2976.0,2975.9,3.66874075]
[1764120771348,0.9932,2976.0,2975.9,3.66874075]
[1764120771542,0.9932,2976.0,2975.9,3.36032796]
[1764120771937,0.9932,2976.0,2975.3,0.72559411]
[1764120771938,0.6706,2976.0,2975.8,3.36039493]
[1764120772139,0.4536,2975.9,2975.8,3.36039493]
[1764120772341,0.4536,2976.3,2975.8,6.72083581]
[1764120772552,0.217,2976.2,2975.5,0.72559411]
[1764120772928,0.4536,2976.1,2975.6,6.7213335]
[1764120773223,0.4536,2976.1,2975.6,3.36066675]
[1764120773453,0.4536,2976.1,2975.0,6.72268906]
[1764120773768,0.4536,2976.1,2975.0,10.08403359]
[1764120774056,0.217,2976.0,2975.1,0.85580642]
[1764120774366,0.217,2976.0,2975.1,0.82219411]
[1764120774527,0.4536,2975.9,2975.1,0.82219411]
[1764120775143,0.4536,2975.9,2975.2,10.08335574]
[1764120775669,0.217,2975.8,2975.2,10.08335574]
[1764120776771,0.6706,2975.9,2975.2,6.72223716]
[1764120776934,0.4536,2975.8,2975.2,6.72223716]
[1764120777534,0.4536,2975.8,2975.2,4.08671269]
[1764120777535,0.4567,2975.3,2975.2,4.08671269]
[1764120778532,0.4536,2975.8,2975.2,7.44783127]
[1764120779557,0.217,2975.7,2975.2,7.44783127]
[1764120779931,0.4536,2975.6,2975.2,7.44783127]
[1764120780126,0.217,2975.7,2975.2,7.44783127]
[1764120780531,0.4536,2975.6,2975.2,7.44783127]
[1764120781055,0.217,2975.7,2975.2,7.44783127]
[1764120781261,0.706,2975.7,2975.2,7.44783127]
[1764120781764,0.489,2975.6,2975.2,7.44783127]
[1764120783264,0.216,2975.9,2975.5,0.59]
[1764120783731,0.216,2975.9,2975.5,0.0966]
[1764120783931,0.216,2975.8,2975.3,0.72559411]
[1764120784149,0.705,2975.8,2975.3,0.72559411]
[1764120784464,0.216,2975.7,2975.3,0.72559411]
[1764120785164,0.216,2975.7,2975.5,0.72559411]
[1764120785528,0.4722,2975.6,2975.1,3.36118116]
[1764120785761,0.705,2975.7,2975.1,3.36118116]
[1764120785762,0.4704,2975.2,2975.1,3.36118116]
[1764120786279,0.4704,2975.2,2975.0,3.36123394]
[1764120786280,0.6882,2975.2,2975.0,3.36123394]
[1764120786479,0.7779,2975.1,2975.0,3.36123394]
[1764120786770,0.7779,2975.1,2974.9,0.001]
[1764120786771,0.216,2975.1,2974.9,6.72386415]
[1764120787145,0.216,2975.4,2974.9,0.001]
[1764120787543,0.705,2975.4,2974.9,0.001]
[1764120788267,0.4722,2975.0,2974.9,0.001]
[1764120788561,0.9612,2975.0,2974.9,0.001]
[1764120789671,0.216,2975.0,2974.9,0.001]
[1764120789968,0.489,2975.4,2974.9,0.001]
[1764120790337,0.216,2975.3,2974.9,0.001]
[1764120791157,0.491,2976.0,2975.2,0.0966]
[1764120791359,0.491,2976.0,2974.9,0.001]
[1764120791360,0.216,2975.9,2974.9,0.001]
[1764120791951,0.216,2975.9,2974.9,0.4779]
[1764120792360,0.216,2975.8,2975.0,0.03361344]
[1764120792561,0.491,2976.0,2975.1,0.13021231]
[1764120792742,0.216,2975.9,2975.1,0.13021231]
[1764120793064,0.216,2975.9,2974.9,0.001]
[1764120793274,0.489,2975.8,2974.9,6.72391504]
[1764120793572,0.4722,2975.0,2974.9,3.36245752]
[1764120793768,0.4722,2975.0,2974.9,0.001]
[1764120793958,0.9612,2975.0,2974.9,0.001]
[1764120794841,0.489,2975.4,2974.9,0.001]
[1764120795041,0.216,2975.3,2974.9,0.001]
[1764120795493,0.216,2975.4,2975.2,0.0966]
[1764120795667,0.216,2975.5,2975.2,0.0966]
[1764120795973,0.216,2975.5,2974.9,0.001]
[1764120796765,0.002,2975.2,2974.9,0.001]
[1764120797744,0.491,2975.2,2974.9,0.001]
[1764120798286,0.002,2975.2,2974.9,0.001]
[1764120799877,0.002,2975.2,2975.1,0.0966]
[1764120800776,0.002,2975.2,2974.9,0.001]
[1764120801570,0.002,2975.2,2974.9,6.72391504]
[1764120802086,0.002,2975.2,2975.1,0.5609]
[1764120802246,0.002,2975.2,2974.9,6.72391504]
[1764120803391,0.4806,2975.2,2974.9,6.72391504]
[1764120804081,0.4802,2975.0,2974.9,0.001]
[1764120804484,1.1748,2975.0,2974.9,0.001]
[1764120805392,0.002,2975.2,2974.9,0.4653]
[1764120805686,0.4806,2975.2,2975.0,3.36134453]
[1764120805887,0.4806,2975.2,2975.0,6.72268906]
[1764120806068,0.4802,2975.1,2975.0,3.36134453]
[1764120806578,0.002,2975.2,2975.0,6.72268906]
[1764120806785,0.4806,2975.2,2975.0,6.72268906]
[1764120807460,0.216,2975.1,2974.9,0.001]
[1764120807990,0.002,2975.2,2974.9,0.001]
[1764120808498,0.4802,2975.0,2974.9,0.001]
[1764120808882,0.9588,2975.0,2974.9,0.001]
[1764120813689,22.93093953,2975.0,2974.9,0.001]
[1764120813887,16.2828371,2975.0,2974.9,0.001]
[1764120814090,19.74418163,2975.0,2974.6,0.001]
[1764120814288,0.4732,2974.7,2974.6,0.001]
[1764120814472,0.6892,2974.7,2974.6,0.001]
[1764120814802,1.1678,2974.7,2974.6,0.001]
[1764120814988,9.432076,2974.7,2974.6,0.001]
[1764120815189,9.42630426,2974.7,2974.6,0.001]
[1764120815699,12.78798779,2974.7,2974.6,0.001]
[1764120815902,12.78798779,2974.7,2972.9,3.46024534]
[1764120815903,12.731798,2974.6,2973.3,0.72559411]
[1764120816225,12.731798,2974.6,2974.3,0.001]
[1764120816226,0.1,2974.4,2974.3,0.001]
[1764120816398,8.54264526,2974.4,2974.3,0.001]
[1764120816701,8.92124526,2974.4,2973.2,3.36337952]
[1764120816907,0.4953,2973.3,2973.2,3.36337952]
[1764120817091,0.216,2973.3,2973.2,3.36337952]
[1764120819312,1.1748,2973.3,2973.2,3.36337952]
[1764120819878,1.1748,2973.3,2972.5,10.81810882]
[1764120820797,0.6962,2973.3,2972.5,14.66818039]
[1764120822399,0.4802,2973.3,2972.5,14.66818039]
[1764120822587,0.216,2973.2,2972.5,14.66818039]
[1764120822995,0.216,2973.2,2972.5,10.81810882]
[1764120823198,0.216,2973.2,2972.6,0.4859]
[1764120823776,0.182,2973.8,2973.1,0.4643]
[1764120823892,0.216,2973.8,2973.1,0.5609]
[1764120824211,0.216,2973.8,2973.2,0.4859]
[1764120824424,0.216,2973.8,2973.3,0.03363266]
[1764120824785,0.216,2973.8,2973.4,10.08945987]
[1764120824981,0.182,2974.3,2973.7,0.4643]
[1764120825204,0.216,2974.2,2973.4,10.08945987]
[1764120825404,0.6946,2974.2,2973.4,10.08945987]
[1764120825606,0.6946,2974.2,2973.4,6.72630658]
[1764120825798,0.4786,2974.1,2973.4,10.08945987]
[1764120826312,0.4786,2974.1,2973.4,6.72630658]
[1764120826813,0.4802,2973.5,2973.2,3.36326726]
[1764120827023,0.3243,2973.4,2973.3,0.72559411]
[1764120827311,0.3243,2973.4,2973.2,6.72664678]
[1764120828127,0.216,2973.5,2973.3,0.5609]
[1764120828330,0.182,2974.7,2973.4,0.49793153]
[1764120828331,0.216,2974.2,2973.4,0.49793153]
[1764120828505,0.216,2974.2,2973.3,0.72559411]
[1764120828706,0.216,2974.1,2973.3,1.21149411]
[1764120829023,0.216,2974.1,2973.5,0.72559411]
[1764120829797,0.4802,2973.6,2973.5,0.72559411]
[1764120830209,0.4786,2974.0,2973.5,0.72559411]
[1764120830428,0.4802,2973.6,2973.5,0.72559411]
[1764120830927,0.216,2973.6,2973.5,4.08863429]
[1764120831252,0.216,2973.7,2973.5,7.95147447]
[1764120831431,0.488,2974.4,2973.5,11.31451465]
[1764120831615,0.216,2974.3,2973.5,11.31451465]
[1764120831928,0.488,2974.4,2973.5,11.31451465]
[1764120832129,0.488,2974.4,2973.5,7.45167447]
[1764120832130,0.216,2974.2,2973.5,7.45167447]
[1764120832337,0.4822,2973.6,2973.5,4.08863429]
[1764120832532,0.488,2974.2,2973.5,7.45167447]
[1764120832837,0.216,2974.1,2973.5,11.31451465]
[1764120833025,0.216,2974.0,2973.5,11.77461465]
[1764120833429,0.216,2974.0,2973.5,11.31451465]
[1764120833649,0.704,2974.0,2973.5,7.45267447]
[1764120833940,0.216,2973.9,2973.5,10.81571465]
[1764120834303,0.488,2973.8,2973.5,6.72708036]
[1764120834712,0.4822,2973.6,2973.5,3.36404018]
[1764120835308,0.9702,2973.6,2973.5,0.001]
[1764120836823,1.1862,2973.6,2973.5,0.001]
[1764120838039,4.54912709,2973.6,2973.5,0.001]
[1764120838421,10.45439309,2973.6,2973.5,0.001]
[1764120839308,8.68287,2973.6,2973.5,0.001]
[1764120839528,6.92122,2973.6,2973.5,0.001]
[1764120839808,10.28414709,2973.6,2973.5,0.001]
[1764120840223,10.59841273,2973.6,2973.5,0.001]
[1764120840418,11.57641273,2973.6,2973.5,0.001]
[1764120840621,8.21348564,2973.6,2973.5,0.001]
[1764120840826,8.11348564,2973.6,2973.5,0.001]
[1764120841024,7.89748564,2973.6,2973.5,0.001]
[1764120841233,0.4822,2973.6,2973.5,0.001]
[1764120841438,0.216,2973.6,2973.5,0.001]
[1764120841636,0.4674,2974.0,2973.5,0.001]
[1764120841838,0.216,2973.9,2973.5,0.001]
[1764120842024,0.4609,2973.6,2973.5,0.001]
[1764120842761,0.9283,2973.6,2973.5,0.001]
[1764120842965,0.4609,2973.6,2973.5,0.001]
[1764120843538,0.6769,2973.6,2973.5,0.001]
[1764120843736,1.1443,2973.6,2973.5,0.001]
[1764120844267,1.45919423,2973.6,2973.5,0.001]
[1764120844561,3.84106423,2973.6,2973.5,0.001]
[1764120844772,7.20399132,2973.6,2973.5,0.001]
[1764120845463,3.84106423,2973.6,2973.5,0.001]
[1764120847152,1.45919423,2973.6,2973.5,0.001]
[1764120847846,5.52226423,2973.6,2973.5,0.001]
[1764120848062,1.45919423,2973.6,2973.5,0.001]
[1764120849277,9.53615532,2973.6,2973.5,0.001]
[1764120850452,5.59641423,2973.6,2973.5,0.001]
[1764120850651,0.53089423,2973.6,2973.5,0.001]
[1764120851349,0.99179423,2973.6,2973.5,0.001]
[1764120853669,14.49242532,2973.6,2973.5,0.001]
[1764120853874,14.59242532,2973.6,2973.5,0.001]
[1764120855065,1.45919423,2973.6,2973.5,0.001]
[1764120855377,6.97226032,2973.6,2973.5,0.001]
[1764120855964,3.60933323,2973.6,2973.5,0.001]
[1764120856157,1.45819423,2973.6,2973.5,0.001]
[1764120856555,5.79324723,2973.6,2973.5,0.001]
[1764120857078,5.20107123,2973.6,2973.5,0.001]
[1764120857372,5.20085269,2973.6,2973.5,0.001]
[1764120857570,1.45797569,2973.6,2973.5,0.001]
[1764120857788,10.03024778,2973.6,2973.5,0.001]
[1764120858154,10.13024778,2973.6,2973.5,0.001]
[1764120858367,10.85521622,2973.6,2973.5,0.001]
[1764120859556,7.27728913,2973.6,2973.5,0.001]
[1764120859760,4.77663813,2973.6,2973.5,0.001]
[1764120859960,4.56163813,2973.6,2973.5,0.001]
[1764120860281,1.50054413,2973.6,2973.5,0.001]
[1764120860486,2.21324413,2973.6,2973.5,0.001]
[1764120860887,9.83367413,2973.6,2973.5,0.001]
[1764120861386,6.10619213,2973.6,2973.5,0.001]
[1764120861690,0.52967569,2973.6,2973.5,0.001]
[1764120861982,0.215,2973.6,2973.5,0.486]
[1764120862385,0.72722014,2974.3,2973.5,0.9607]
[1764120862549,0.52986292,2974.2,2973.5,0.9607]
[1764120862755,0.31486292,2974.1,2973.5,0.9607]
[1764120863179,0.31486292,2974.0,2973.5,0.486]
[1764120863381,0.31486292,2973.9,2973.5,0.486]
[1764120863691,0.4748,2973.6,2973.5,0.001]
[1764120863860,0.002,2974.3,2973.5,0.001]
[1764120864065,0.52997443,2974.2,2973.7,0.485]
[1764120864293,0.31497443,2974.1,2973.7,0.485]
[1764120864484,0.31497443,2974.1,2973.5,0.001]
[1764120864485,0.31497443,2974.0,2973.5,0.001]
[1764120864783,0.31497443,2973.9,2973.5,0.001]
[1764120864972,0.215,2973.8,2973.5,0.001]
[1764120865487,0.4748,2973.6,2973.5,0.001]
[1764120865687,0.78995851,2973.6,2973.5,0.001]
[1764120865892,0.31516092,2973.6,2973.5,0.001]
[1764120866068,0.7260414,2974.0,2973.5,0.486]
[1764120866266,0.53014806,2973.9,2973.5,0.001]
[1764120866467,0.4748,2973.6,2973.5,0.001]
[1764120866769,0.002,2974.3,2973.5,0.001]
[1764120866971,0.53114846,2974.2,2973.7,0.485]
[1764120867160,0.216,2974.2,2973.7,0.485]
[1764120867360,0.216,2974.2,2973.8,0.4747]
[1764120867892,0.216,2974.2,2973.9,6.72517568]
[1764120868058,0.216,2974.2,2973.9,3.36258784]
[1764120868591,0.216,2974.2,2973.8,3.83736887]
[1764120868886,0.216,2974.1,2973.8,3.83736887]
[1764120869662,0.216,2974.1,2973.8,0.4747]
[1764120869861,0.216,2974.1,2973.8,3.83739523]
[1764120870379,0.216,2974.1,2973.8,0.4747]
[1764120870589,0.216,2974.1,2973.8,3.8373606]
[1764120870819,0.4748,2973.9,2973.5,0.001]
[1764120870959,0.3107,2973.6,2973.5,0.001]
[1764120871162,1.0234,2973.6,2973.5,0.001]
[1764120871406,1.33813983,2973.6,2973.5,0.001]
[1764120871780,4.70106692,2973.6,2973.5,0.001]
[1764120872870,16.35692943,2973.6,2973.5,0.001]
[1764120873094,15.89909743,2973.6,2973.5,0.001]
[1764120873488,15.99909743,2973.6,2973.5,0.001]
[1764120874070,0.62543983,2973.6,2973.5,0.001]
[1764120874269,0.84143983,2973.6,2973.5,0.001]
[1764120874883,0.62543983,2973.6,2973.5,0.001]
[1764120875166,0.84143983,2973.6,2973.5,0.001]
[1764120876605,0.84141521,2973.6,2973.5,0.001]
[1764120876813,6.9774603,2973.6,2973.5,0.001]
[1764120877173,7.70258543,2973.6,2973.5,0.001]
[1764120877479,4.7020423,2973.6,2973.5,0.001]
[1764120877691,9.85329062,2973.6,2973.5,0.001]
[1764120878080,7.68631862,2973.6,2973.5,0.001]
[1764120878298,4.2043423,2973.6,2973.5,0.001]
[1764120879170,4.7020423,2973.6,2973.5,0.001]
[1764120879607,6.7742103,2973.6,2973.5,0.001]
[1764120879912,6.7742103,2973.6,2972.9,0.001]
[1764120879913,0.1,2973.0,2972.9,0.001]
[1764120880081,23.52693599,2973.0,2972.9,0.001]
[1764120880277,30.96006337,2973.0,2971.6,0.0966]
[1764120880471,4.29714751,2972.6,2971.6,0.0966]
[1764120880673,1.02841521,2972.5,2971.6,0.0966]
[1764120880873,0.41471521,2972.4,2971.6,0.0966]
[1764120881192,4.29714751,2972.2,2971.6,0.0966]
[1764120881499,0.216,2972.1,2971.6,0.0966]
[1764120881889,0.7137,2972.1,2970.9,0.4747]
[1764120882078,0.6328,2971.7,2971.0,3.53155615]
[1764120882281,0.216,2971.6,2971.0,3.53155615]
[1764120883201,0.216,2971.6,2971.0,0.1657]
[1764120883569,0.216,2971.6,2970.6,3.84099439]
[1764120883570,0.7137,2971.6,2970.7,3.36616298]
[1764120883774,0.7137,2971.6,2970.6,3.84100125]
[1764120883993,0.4977,2971.5,2970.6,7.20732455]
[1764120884176,3.86302454,2971.5,2970.6,7.20732455]
[1764120884675,4.29714751,2971.0,2970.5,0.001]
[1764120885008,0.216,2970.9,2970.6,6.7326466]
[1764120885315,0.216,2970.9,2970.5,0.001]
[1764120885615,4.79484751,2971.3,2970.5,6.73387031]
[1764120885774,0.216,2971.2,2970.5,3.84213369]
[1764120885972,0.216,2971.1,2970.5,7.20857031]
[1764120886376,3.603961,2971.5,2970.5,6.73387031]
[1764120886576,0.4977,2971.6,2970.6,0.4747]
[1764120886577,0.216,2971.4,2970.6,0.4747]
[1764120886977,0.4977,2971.6,2970.6,0.4747]
[1764120887179,0.216,2971.5,2970.6,0.4747]
[1764120887914,0.7137,2971.5,2970.5,3.36743369]
[1764120888091,0.8137,2971.5,2970.5,6.73387031]
[1764120888288,0.4977,2971.4,2970.5,0.001]
[1764120888606,7.082093,2971.2,2970.5,0.001]
[1764120888923,6.31405,2971.2,2970.5,0.001]
[1764120889124,0.216,2971.1,2970.5,0.001]
[1764120889497,0.4977,2971.0,2970.5,0.001]
[1764120889740,0.6625,2970.6,2970.5,0.001]
[1764120889885,1.3762,2970.6,2970.5,0.001]
[1764120892032,0.405504,2971.5,2970.5,0.4875]
[1764120892033,4.384706,2971.0,2970.5,0.4875]
[1764120892233,0.216,2970.9,2970.5,0.001]
[1764120892527,0.8662,2970.9,2970.5,0.001]
[1764120892728,0.216,2970.8,2970.5,0.001]
[1764120893025,4.29714751,2971.4,2970.5,0.001]
[1764120893026,0.216,2970.7,2970.5,0.4714]
[1764120893199,2.316792,2971.3,2970.5,0.001]
[1764120893522,0.6738,2971.2,2970.5,0.001]